{"text_format":"1","workbook":"xlsx","n_sheets":1,"sheets":["Plantilla 1° Octubre Total"],"not_rendered":{"charts":0,"images":0,"macros":1,"external_links":0,"defined_names":0,"comments":0,"pivot_tables":0},"unopened":[],"bounds":{"document_bytes":16777216,"sheet_cells":100000,"rows_first":2000,"rows_last":500,"rows_between":2000,"halvings":0,"cell_chars":16384,"cell_head_chars":4096},"cells_cut":0,"cells_raw":0,"read":"whole","date_system":"1900"}

{"sheet":"Plantilla 1° Octubre Total","index":0,"n_rows":217,"n_cols":73,"rows_kept":217,"cut":false,"hidden":false,"merged":[[6,0,6,7],[169,0,169,7],[170,0,170,7]]}
[]
[]
[]
["Nombre","RFC","Adscripción","DEPARTAMENTO","SUELDO","SUBSIDIO","I.S.T.P","NETO A PAGAR"]
["(2)","(3)","(4)","(4)"]
[]
["NOMINA DE ADMINISTRATIVOS 1° QUINCENA DEL MES DE OCTUBRE 2015"]
["ROSA MARIA GODINEZ ORTEGA",null,"REGIDOR","GOBERNACION",{"$f":"H8+G8","v":8821.9500000000007},null,1337.15,7484.8]
["J. NATIVIDAD GODINEZ ORTEGA",null,"REGIDOR","GOBERNACION",{"$f":"H9+G9","v":8821.9500000000007},null,1337.15,7484.8]
["JOSE ALBERTO ESTRADA CRUZ",null,"REGIDOR","GOBERNACION",8821.9500000000007,null,1337.15,7484.8]
["MA. DOLORES CEJA NUÑO","LOBG7708065A9","REGIDOR","GOBERNACION",8821.9500000000007,null,1337.15,7484.8]
["LORENZO CASILLAS GONZALEZ",null,"REGIDOR","GOBERNACION",8821.9500000000007,null,1337.15,7484.8]
["GUSTAVO ORTEGA RODRIGUEZ",null,"REGIDOR","GOBERNACION",8821.9500000000007,null,1337.15,7484.8]
["RAMIRO GIL PEREZ"," LOSR6610074R9","REGIDOR","GOBERNACION",8821.9500000000007,null,1337.15,7484.8]
["GOMEZ MENDOZA MIGUEL ANGEL",null,"REGIDOR","GOBERNACION",8821.9500000000007,null,1337.15,7484.8]
["ERIKA YULIANA GODINEZ CASTELLANOS",null,"REGIDOR","GOBERNACION",8821.9500000000007,null,1337.15,{"$f":"E16-G16","v":7484.8000000000011}]
["AGUILAR GARCIA JUAN LUIS","VESA610828AI0","PRESIDENTE","PRESIDENCIA",18000,null,3584.65,14415.35]
["NAVARRO SAHAGUN ARACELI","NASA910913G42","SECRETARIA","PRESIDENCIA",2981.4,null,75,2906.4]
["SANTANA   MENDEZ   JORGE","GAGA7809173B9","SECRETARIO PARTICULAR","PRESIDENCIA",{"$f":"H19+G19","v":4461.9000000000005},null,427.12,4034.78,{"$f":"J19/30","v":297.46666666666664},8924]
["GUTIERREZ ORTEGA JOSE ALONZO",null,"DIRECTOR DE PLANEACION","PLANEACION Y EVALUACION MUNICIPAL",6679.5,null,879.48,{"$f":"E20-G20","v":5800.02}]
["GARCIA RODRIGUEZ DONALDO HAZEL",null,"AUXILIAR DE PLANEACION ","PLANEACION Y EVALUACION MUNICIPAL",2268.75,31.99,null,{"$f":"E21+F21","v":2300.7399999999998}]
["BALLESTEROS ESTRADA NICOLAS "," AIOP830807CQ1","SINDICO","SINDICATURA",{"$f":"H22+G22","v":8821.5},null,1337,7484.5,{"$f":"J22/30","v":588.1},17643]
["HERNANDEZ ALVAREZ ANTONIO",null,"JEFE DE REGLAMENTOS","SINDICATURA",{"$f":"H23-F23","v":1719.9},94.74,null,1814.64]
["NAVARRO RAMIREZ  SERGIO ALEJANDRO","OEMC7407254L2","JURIDICO","SINDICATURA",5953.5,null,724.4,{"$f":"E24-G24","v":5229.1000000000004},{"$f":"J24/30","v":396.9},11907]
["SUAREZ BERNAL PEDRO",null,"JEFE REGLAMENTOS","SINDICATURA",3150,null,113.57,{"$f":"E25-G25","v":3036.43},{"$f":"J25/30","v":210},6300]
["BAÑUELOS LOPEZ  J. CRUZ FERNANDO","CACX8504257RA","SECRETARIO GENERAL","SECRETARIA GENERAL",6930,null,932.99,{"$f":"E26-G26","v":5997.01},{"$f":"J26/30","v":400},12000]
["RANGEL BAÑUELOS ELIA JAQUELINE","AUCB841117RT7","SECRETARIA","SECRETARIA GENERAL",{"$f":"H27-F27","v":2019.4500000000003},70.349999999999994,null,2089.8000000000002,{"$f":"J27/30","v":134.63333333333333},4039]
["CERVANTES RIVERA JUAN CARLOS","CALJ7006041G0","MEDICO MUNICIPAL","SERVICIOS MEDICOS MUNICIPALES",6520.05,null,845.42,{"$f":"E28-G28","v":5674.63},{"$f":"J28/30","v":434.66666666666669},13040]
["JIMENEZ GONZALEZ ROSA","JIGR661115B91","COMUSIDA","SERVICIOS MEDICOS MUNICIPALES",{"$f":"H29+G29","v":2981.4},null,80,2901.4]
["ARIZAGA ORTEGA GRISELDA","AIOG840601AH1","SECRETARIA","OFICIALIA MAYOR",{"$f":"H30+G30","v":2981.36},null,74.959999999999994,2906.4]
["BAÑUELOS LOPEZ ROCIO","BALR881002GKA","AUX CONTROL Y COMPRAS","OFICIALIA MAYOR",{"$f":"H31+G31","v":2683.9500000000003},null,42.55,2641.4]
["FLORES RODRIGUEZ MARIO","FORM831114QT4","MECANICO","OFICIALIA MAYOR",{"$f":"H32+G32","v":3402},null,141,3261]
["VARGAS GARCIA MA. DOLORES","VAGM690331F8A","INTENDENTE","OFICIALIA MAYOR",{"$f":"H33-F33","v":1473.0700000000002},117.33,null,1590.4]
["HERNANDEZ GUTIERREZ ALMA DELIA","HEGA711221E2A","INTENDENTE","OFICIALIA MAYOR",{"$f":"H34-F34","v":1473.0700000000002},117.33,null,1590.4]
["NAVARRETE ALFARO MA DEL ROSARIO",null,"INTENDENTE","OFICIALIA MAYOR",{"$f":"H35+G35","v":2236.4699999999998},null,55.47,2181]
["LOPEZ HERNANDEZ MA.ROSARIO","LOHM720305EF8","INTENDENTE","OFICIALIA MAYOR",{"$f":"H36-F36","v":1473.0700000000002},117.33,null,1590.4]
["SANCHEZ LOPEZ ERICK","GAMJ780418MM9","OFICIAL MAYOR","OFICIALIA MAYOR",6679.5,null,879.48,{"$f":"E37-G37","v":5800.02}]
["LOPEZ LOPEZ MAYRA ALEJANDRA","PECE880321TL0","ENCARG COMUNIC SOCIAL","OFICIALIA MAYOR",3000,null,76.98,{"$f":"E38-G38","v":2923.02},{"$f":"J38/30","v":200},6000]
["NAVARRO CASILLAS FERNANDO",null,"AUX COMUNIC SOCIAL A","OFICIALIA MAYOR",2572.5,null,15.55,{"$f":"E39-G39","v":2556.9499999999998},{"$f":"J39/30","v":183.33333333333334},5500]
["LOPEZ RAMOS RODOLFO",null,"AUX COMUNIC SOCIAL B","OFICIALIA MAYOR",2572.5,null,15.55,{"$f":"E40-G40","v":2556.9499999999998}]
["RANGEL ARELLANO RICARDO","IAOD871109AX0","ENCARGADO VEHICULOS","OFICIALIA MAYOR",3388.95,null,139.55000000000001,3249.4]
["JIMENEZ GUTIERREZ MA DEL CARMEN","GOJL780918727","OFICIAL REGISTRO CIVIL","REGISTRO CIVIL",{"$f":"H42+G42","v":4820.3999999999996},null,491.4,4329,{"$f":"J42/30","v":300},9000]
["GODINEZ ZUÑIGA MA.LOURDES"," GOZM720317RZ9","AUX REGISTRO CIVIL","REGISTRO CIVIL",{"$f":"H43-F43","v":1758.9},87.3,null,1846.2]
["ORTEGA BARRAGAN ALICIA",null,"SECRETARIA","REGISTRO CIVIL",{"$f":"H44+G44","v":2839.95},null,59.75,2780.2]
["CAMPOS AVILA CECILIA","CAAC830517NJ9","AUX REGISTRO CIVIL","REGISTRO CIVIL",3721.9500000000003,null,304.55,3417.4]
["ALBERTO FLORES SANCHEZ",null,"AUX REGISTRO CIVIL","REGISTRO CIVIL",1999.95,71.69,null,{"$f":"E46+F46","v":2071.64},{"$f":"J46/30","v":133.33333333333334},4000]
["ORTEGA MUÑIZ JOSE LUIS","OEML550719289","PROMOTOR EDUCACION","CASA DE CULTURA",4107.8999999999996,null,366.3,3741.6]
["VELASCO CERVANTES ANA ROSA","VECA841116P3A","SECRETARIA","CASA DE CULTURA",2760.45,null,50.85,2709.6]
["TRUJILLO DIAZ SANDRA",null,"BIBLIOTECARIA","CASA DE CULTURA",2485.9899999999998,null,6.04,2479.9499999999998]
["JIMENEZ ENRIQUE ANA ROSA",null,"BIBLIOTECARIA","CASA DE CULTURA",2868.4500000000003,null,62.65,2805.8]
["GODINEZ VALDIVIA EFRAIN","GOVE770726A66","PROMOTOR CULTURA","CASA DE CULTURA",2583.88,null,16.690000000000001,2567.19]
["BELLO GIL OSCAR EDGARDO",null,"AUX. CASA CULTURA","CASA DE CULTURA",3027.9,null,80.099999999999994,2947.8]
["ORTEGA MENDOZA JORGE","OEMJ550423KG7","VELADOR","CASA DE CULTURA",{"$f":"H53-F53","v":1579.95},110.45,null,1690.4]
["ORTEGA FERNANDEZ ANASTACIO","SAGP581106HF6","DIRECTOR CASA CULTURA","CASA DE CULTURA",5287.5,null,582.15,{"$f":"E54-G54","v":4705.3500000000004},{"$f":"J54/30","v":366.66666666666669},11000]
["NAVARRO HURTADO GUILLERMO",null,"DEPORTE ESCOLAR","CASA DE CULTURA",3402,null,141,3261,226.8,6804]
["ORTEGA CERVANTES CARLOS","MASJ5505041N5","PROMOTOR DEPORTIVO","CASA DE CULTURA",3499.95,null,151.65,3348.2999999999997,233.33333333333334,7000]
["GONZALEZ GODINEZ GERARDO","CORG791111989","CONTRALOR","CONTRALORIA",4999.95,null,523.54,4476.41,333.33333333333331,10000]
["JAIME LOPES OCEGUEDA",null,"DELEGADO SN MIGUEL","DELEGACIONES",2101.9499999999998,64.05,null,{"$f":"E58+F58","v":2166},200,6000]
["LOPEZ HENRRIQUEZ GUILLERMO",null,"DELEGADO MALTARAÑA","DELEGACIONES",2101.9499999999998,64.05,null,{"$f":"E59+F59","v":2166},200,6000]
["TORRES LOPEZ ENRIQUE ALBERTO",null,"DELEGADO SN AGUSTIN","DELEGACIONES",2101.9499999999998,64.05,null,2166,200,6000]
["BRISEÑO  RODRIGUEZ JUAN CARLOS","BIRJ830511DE8","CONTROL PRESUPUESTAL","HACIENDA MUNICIPAL",{"$f":"H61+G61","v":4620},null,455.4,4164.6000000000004]
["LOPEZ LOPEZ JESSICA","LOLJ920103BG3","AUXILIAR EGRESOS","HACIENDA MUNICIPAL",{"$f":"H62+G62","v":2746.95},null,49.35,2697.6]
["GARCIA NAVARRO LOURDES",null,"ENCARGADA DE EGRESOS","HACIENDA MUNICIPAL",{"$f":"H63+G63","v":3675},null,297.2,3377.8]
["HERNANDEZ VELASCO CAROLINA",null,"AUXILIAR DE INGRESOS","HACIENDA MUNICIPAL",{"$f":"H64+G64","v":2981.4},null,74.8,2906.6]
["RAMOS CRUZ JOSE DE JESUS"," RACJ501003LK6","NOTIFICADOR","HACIENDA MUNICIPAL",{"$f":"H65+G65","v":3444.4500000000003},null,145.65,3298.8]
["CERDA CARRILLO MAYRA DEL ROSARIO",null,"ENC RECURSOS HUMANOS","HACIENDA MUNICIPAL",{"$f":"H66+G66","v":2981.4},null,75,2906.4]
["MARTINEZ RAZO DELIA","MARD630717LV9","SECRETARIA","HACIENDA MUNICIPAL",2683.5,null,42.5,2641]
["ORTEGA HERNANDEZ GABRIEL","OEHG550515B42","SUPERVISOR","HACIENDA MUNICIPAL",2977.9500000000003,null,74.55,2903.4]
["JOSE RAQUEL OCHO RUIZ ",null,"RECAUDADOR","HACIENDA MUNICIPAL",1984.3,null,49.6,{"$f":"E69-G69","v":1934.7},{"$f":"J69/30","v":198.43333333333334},5953]
["LOPEZ HERNANDEZ TOMAS",null,"JEFE DE PADRON Y LICENCIAS","HACIENDA MUNICIPAL",1719.9,94.74,null,1814.64]
["MELGOZA BAUTISTA RAMON",null,"RECAUDADOR","HACIENDA MUNICIPAL",1190.76,135.51,null,1326.27]
["HERNANDEZ ORTEGA ANTONIO",null,"RECAUDADOR","HACIENDA MUNICIPAL",1404.41,121.84,null,1526.25]
["MOLINA SAHAGUN CESAR CELESTINO","JIVG771018NZ8","ENCARGADO HDA MUNICIPAL","HACIENDA MUNICIPAL",9499.9500000000007,null,1481.93,{"$f":"E73-G73","v":8018.02}]
["CORTES ROMERO VICTORIA","LOHT650121S12","JEFE PADRON Y LICENCIAS","HACIENDA MUNICIPAL",3251.55,null,124.62,{"$f":"E74-G74","v":3126.9300000000003},{"$f":"J74/30","v":216.66666666666666},6500]
["AGUILAR GARCIA MARIO ALBERTO",null,"AUX. DE TESORERIA","HACIENDA MUNICIPAL",2883.45,null,64.3,2819.15]
["BAÑUELOS LOPEZ ANA MARTHA",null,"SECRETARIA","CATASTRO",{"$f":"H76+G76","v":2981.4},null,75,2906.4]
["SALAZAR  GARCIA DOMINGO",null,"AUXILIAR ADMINISTRATIVO","CATASTRO",{"$f":"H77+G77","v":2981.4},null,75,2906.4]
["LOPEZ HERNANDEZ IGNACIO"," LOHI590731FB3","APREMIOS","CATASTRO",2584.5,null,16.899999999999999,2567.6]
["ORTEGA JIMENEZ GERARDO","OEJG7411025J3","DIBUJANTE","CATASTRO",2712.45,null,45.85,2666.6]
["GONZALEZ JIMENEZ RAFAEL","GOJR5512078R1","AUXILIAR LEVANTAMIENTO","CATASTRO",3268.5,null,126.3,3142.2]
["LOPEZ SOTELO RAFAEL"," VAVA7706286J2","JEFE CATASTRO","CATASTRO",4762.5,null,480.99,{"$f":"E81-G81","v":4281.51},{"$f":"J81/30","v":317.5},9525]
["GOMEZ VELASCO ALEJANDRO",null,"CHOFER MECANICO","OBRAS PUBLICAS",2649.4599999999996,null,21.49,2627.97]
["RIVERA LOPEZ PEDRO",null,"JEFE PROYECTOS","OBRAS PUBLICAS",4536,null,440.4,4095.6]
["RODRIGUEZ PEREZ BERENICE",null,"AUXILIAR OBRAS PUBLICAS","OBRAS PUBLICAS",3975.4500000000003,null,345.05,3630.4]
["SAHAGUN JIMENEZ MARTHA GUADALUPE",null,"SECRETARIA","OBRAS PUBLICAS",2981.4,null,75,2906.4]
["SAHAGUN GONZALEZ JOSE LUIS","SAGL740502EC7","AUXILIAR URBANISMO","OBRAS PUBLICAS",3969,null,344.2,3624.8]
["SAHAGUN GONZALEZ PABLO","SAGP680209KZ1","JEFE URBANISMO","OBRAS PUBLICAS",5669.85,null,663.85,5006]
["PORRAS LOPEZ ERNESTO",null,"TOPOGRAFO","OBRAS PUBLICAS",4976.45,null,440.4,4536.05]
["RIZO ARRIAGA JORGE","RIAJ620913NE4","OFICIAL ALBAÑIL A","OBRAS PUBLICAS",3277.5,null,127.5,3150]
["CRUZ GARCIA BRAULIO","CUGB600402F87","OFICIAL ALBAÑIL B","OBRAS PUBLICAS",3118.35,null,110.15,3008.2]
["GODINEZ LOPEZ GERARDO","GOLG670926BM3","OPERADOR MAQUINA","OBRAS PUBLICAS",2836.2,null,59.2,2777]
["ESTRADA SOLIS MANUEL",null,"OPERADOR MAQUINA","OBRAS PUBLICAS",2836.16,null,59.16,2777]
["BRISEÑO JIMENEZ VICTOR MAGDALENO",null,"CHOFER MECANICO","OBRAS PUBLICAS",2953.95,null,71.95,2882]
["JIMENEZ MUNGUIA FRANCISCO RAMON",null,"AYUDANTE ALBAÑIL A","OBRAS PUBLICAS",2683.54,null,42.54,2641]
["VILLARRUEL MURILLO PABLO",null,"AYUDANTE ALBAÑIL B","OBRAS PUBLICAS",{"$f":"H95-F95","v":2427},0.2,null,2427.1999999999998]
["HERNANDEZ PEREZ JUAN",null,"ALMACENISTA","OBRAS PUBLICAS",{"$f":"H96+G96","v":2883.45},null,64.25,2819.2]
["LOPEZ HERNANDEZ ARTURO",null,"DIRECTOR OBAS ","OBRAS PUBLICAS",6499.95,null,841.13,{"$f":"E97-G97","v":5658.82},{"$f":"J97/30","v":433.33333333333331},13000]
["BECERRA SAHAGUN ERNESTO"," BESE720209NF5","SUPERVISOR DE OBRAS","OBRAS PUBLICAS",4535.55,null,440.32,{"$f":"E98-G98","v":4095.23},{"$f":"J98/30","v":302.36666666666667},9071]
["GOMEZ ORTEGA PATRICIA"," GOOP690709UV4","SECRETARIA","SERVICIOS PUBLICOS",{"$f":"H99+G99","v":3507},null,152.4,3354.6]
["LOPEZ CAMARENA MARTIN","LOCM631231I72","ENCARGADO CEMENTERIO","SERVICIOS PUBLICOS",{"$f":"H100-F100","v":2085.9},65.900000000000006,null,2151.8000000000002]
["SAHAGUN GUTIERREZ ANTONIO","SAGA4406072K6","AUXILIAR RASTRO","SERVICIOS PUBLICOS",{"$f":"H101-F101","v":2168.12},63.78,null,2231.9]
["RANGEL GONZALEZ RICARDO","RAGR610809BS0","ELECTRICISTA A","SERVICIOS PUBLICOS",{"$f":"H102+G102","v":3681},null,298,3383]
["JIMENEZ BARRETO RAMON","JIBR561029RR5","ELECTRICISTA B","SERVICIOS PUBLICOS",3402,null,141,3261]
["ORTEGA CHAVEZ ALBERTO",null,"AYUDANTE ELECTRICISTA","SERVICIOS PUBLICOS",{"$f":"H104-F104","v":2268},32,null,2300]
["ZEPEDA SALGADO ARNULFO","ZESA680915AH4","CHOFER","SERVICIOS PUBLICOS",{"$f":"H105+G105","v":3500.4},null,151.6,3348.8]
["LOPEZ ORDAS ROSENDO","LOOR710919T96","CHOFER","SERVICIOS PUBLICOS",{"$f":"H106+G106","v":3500.4},null,151.80000000000001,3348.6]
["DIAZ LOPEZ MARTIN",null,"CHOFER","SERVICIOS PUBLICOS",3500.4,null,151.80000000000001,3348.6]
["VILLARRUEL CHAVEZ DIEGO IVAN",null,"CHOFER","SERVICIOS PUBLICOS",{"$f":"H108-F108","v":2247.9599999999996},34.26,null,2282.2199999999998]
["ORTEGA RODRIGUEZ GILBERTO","OERG810206GLA","CHOFER","SERVICIOS PUBLICOS",{"$f":"H109+G109","v":2809.9500000000003},null,56.15,2753.8,null,null,null,null,null,null,null,null,null,null,null,null,null,null,null,null,null,null,null,null,null,null,null,null,null,null,null,null,null,null,null,null,null,null,null,null,null,null,null,null,null,null,null,null,null,null,null,null,null,null,null,null,null,null,null,null,null,null,null,null,null,null,null,null,"|"]
["GONZALEZ LEON RAMON","GOLR540831K92","AUXILIAR DE ASEO","SERVICIOS PUBLICOS",{"$f":"H110+G110","v":2484},null,6,2478]
["RODRIGUEZ DAVILA BASILIO",null,"AUXILIAR DE ASEO","SERVICIOS PUBLICOS",2484,null,5.8,2478.1999999999998]
["RAMIREZ LIMON MARTIN",null,"AUXILIAR DE ASEO","SERVICIOS PUBLICOS",2484,null,5.8,2478.1999999999998]
["ZEPEDA SALGADO JOSE EDUARDO",null,"AUXILIAR DE ASEO","SERVICIOS PUBLICOS",2484,null,5.8,2478.1999999999998]
["AYALA BRISEÑO DOMINGO",null,"AUXILIAR DE ASEO","SERVICIOS PUBLICOS",2493,null,6,2487]
["CRUZ LOPEZ LUIS","CULL600106CC9","AUXILIAR DE ASEO","SERVICIOS PUBLICOS",2484,null,5.8,2478.1999999999998]
["MACIEL BARBOSA JOSE LUIS",null,"AUXILIAR DE ASEO","SERVICIOS PUBLICOS",2484,null,6,2478]
["MACIEL BARBOZA MARTIN",null,"AUXILIAR DE ASEO","SERVICIOS PUBLICOS",2484,null,6,2478]
["NAVARRETE ALFARO CRISTINA",null,"BARRENDERA","SERVICIOS PUBLICOS",{"$f":"H118-F118","v":1710.9},102.1,null,1813]
["MUNGUIA RAMOS MARICELA",null,"BARRENDERA","SERVICIOS PUBLICOS",{"$f":"H119-F119","v":1710.9},102.1,null,1813]
["PEREZ SOTELO J. SANTOS",null,"BARRENDERA","SERVICIOS PUBLICOS",1627.95,107.45,null,1735.4]
["GARCIA PEREZ JUAN MANUEL","OERG7803155I6","DIRECTOR SERV PUBLICOS","SERVICIOS PUBLICOS",5152.5,null,553.32000000000005,{"$f":"E121-G121","v":4599.18}]
["LOPEZ ORTEGA ABEL",null,"ADMINISTRADOR RASTRO","SERVICIOS PUBLICOS",3108,null,109,{"$f":"E122-G122","v":2999}]
["VILLANUEVA DIAZ MAURO","ZAMJ501130MA9","JEFE DE ASEO","SERVICIOS PUBLICOS",3684.75,null,298.61,{"$f":"E123-G123","v":3386.14}]
["ARROYO ORTEGA DAVID",null,"ASISTENTE","ECOLOGIA PARQUES Y JARDINES",{"$f":"H124+G124","v":2551.5},null,13.26,2538.2399999999998]
["CERVANTES NAVARRO EVELYN AZUCENA",null,"AUXILIAR","ECOLOGIA PARQUES Y JARDINES",2350.9499999999998,8.65,null,2359.6]
["ALVAREZ AGUIRRE MIGUEL",null,"JARDINERO A","ECOLOGIA PARQUES Y JARDINES",2385,5,null,2390]
["CRUZ ARIZMENDI J.REFUGIO",null,"JARDINERO B","ECOLOGIA PARQUES Y JARDINES",{"$f":"H127-F127","v":2253},33.799999999999997,null,2286.8000000000002]
["RODRIGUEZ JIMENEZ LUIS",null,"JARDINERO B","ECOLOGIA PARQUES Y JARDINES",2253,33.799999999999997,null,2286.8000000000002]
["LOPEZ GONZALEZ JAVIER",null,"JARDINERO C","ECOLOGIA PARQUES Y JARDINES",2164.9499999999998,57.05,null,2222]
["MURILLO HERNANDEZ MARTIN",null,"JARDINERO C","ECOLOGIA PARQUES Y JARDINES",2164.9499999999998,57.25,null,2222.1999999999998]
["RODRIGUEZ SEGURA OFELIA","ROSO580610IE9","JARDINERO MALTARAÑA","ECOLOGIA PARQUES Y JARDINES",1927.5,76.3,null,2003.8]
["BRAVO ALVAREZ SAUL",null,"JARDINERO F","ECOLOGIA PARQUES Y JARDINES",2325.9,25.7,null,2351.6]
["GARCIA GARCIA MELQUIADES",null,"JARDINERO G","ECOLOGIA PARQUES Y JARDINES",{"$f":"H133+G133","v":2484.4499999999998},null,5.85,2478.6]
["GONZALEZ GODINEZ ALBERTO",null,"JARDINERO H","ECOLOGIA PARQUES Y JARDINES",{"$f":"H134-F134","v":2484.4499999999998},55.55,null,2540]
["OCEGUEDA REYES JOSE ISMAEL",null,"JARDINERO SN MIGUEL","ECOLOGIA PARQUES Y JARDINES",{"$f":"H135-F135","v":2193},54,null,2247]
["GARCIA VACA CECILIA",null,"JARDINERO","ECOLOGIA PARQUES Y JARDINES",1308.75,127.85,null,1436.6]
["GARCIA TORO SALVADOR",null,"CHOFER PIPA","ECOLOGIA PARQUES Y JARDINES",{"$f":"H137+G137","v":2741.67},null,48.87,2692.8]
["LOPEZ MURILLO GUILLERMO",null,"DIRECTOR ECOLOGIA","ECOLOGIA PARQUES Y JARDINES",4750.05,null,478.75,{"$f":"E138-G138","v":4271.3},{"$f":"J138/30","v":273.53333333333336},8206]
["PEREZ CAUDILLO ALBERTO",null,"AUXILIAR","ECOLOGIA PARQUES Y JARDINES",2350.9499999999998,8.65,null,{"$f":"E139+F139","v":2359.6}]
["GODINEZ BARBOSA RICARDO","GOBR670420186","JEFE AGUA POTABLE","AGUA POTABLE Y ALCANTARILLADO",{"$f":"H140+G140","v":3969},null,344,3625]
["GODINEZ RAZO RUBEN","GORR580402RC8","FONTANERO","AGUA POTABLE Y ALCANTARILLADO",3627,null,183.2,3443.8]
["IÑIGUEZ LARA LEOPOLDO   ",null,"FONTANERO SN MIGUEL","AGUA POTABLE Y ALCANTARILLADO",{"$f":"H142-F142","v":2189.4},54.4,null,2243.8000000000002]
["TRUJILLO MANJARREZ  VALENTIN ",null,"FONTANERO SN AGUSTIN","AGUA POTABLE Y ALCANTARILLADO",{"$f":"H143-F143","v":2189.4},54.6,null,2244]
["DELGADO TERRONES J. DOLORES",null,"ADMIN. AGUA POTABLE","AGUA POTABLE Y ALCANTARILLADO",1984.4999999999998,72.7,null,2057.1999999999998]
["GONZALEZ CAMPOS ERNESTO",null,"AYUDANTE","AGUA POTABLE Y ALCANTARILLADO",{"$f":"H145+G145","v":2494.9500000000003},null,7.15,2487.8000000000002]
["LOREDO LOREDO J.MIGUEL",null,"AYUDANTE","AGUA POTABLE Y ALCANTARILLADO",{"$f":"H146+G146","v":2494.9500000000003},null,7.15,2487.8000000000002]
["HERNANDEZ GONZALEZ FRANCISCO",null,"AYUDANTE","AGUA POTABLE Y ALCANTARILLADO",2494.5,null,6.9,2487.6]
["RODRIGUEZ MENDOZA RUBEN",null,"AUXILIAR AGUA Y DRENAJE","AGUA POTABLE Y ALCANTARILLADO",3279.4500000000003,null,127.65,3151.8]
["NAVARRO SUAREZ JUAN ANTONIO",null,"ENCARG VALVULAS","AGUA POTABLE Y ALCANTARILLADO",2494.9500000000003,null,7.15,2487.8000000000002]
["GONZALEZ ORTEGA RAUL",null,"ENCARG VALVULAS","AGUA POTABLE Y ALCANTARILLADO",2944.5,null,70.900000000000006,2873.6]
["ABELINO CASTELLANOS ","LINO","JUEZ MUNICIPAL","JUEZ MUNICIPAL",4000.05,null,349.05,3651]
["GARIBAY MUÑIZ RODRIGO",null,"DIRECTOR TURISMO","TURISMO",3000,null,76.98,{"$f":"E152-G152","v":2923.02},{"$f":"J152/30","v":200},6000]
["CASTELLANOS BAÑUELOS MA. EUGENIA",null,"AUX. TURISMO","TURISMO",{"$f":"H153-F153","v":2247.7999999999997},34.4,null,2282.1999999999998]
["RAMIREZ ESPARZA GILBERTO",null,"AUXILIAR DE INTENDECIA","PENSIONADOS",{"$f":"H154-F154","v":918.30000000000007},152.9,null,1071.2]
["BARBOZA GONZLAEZ J.SANTOS",null,"JARDINERO A","PENSIONADOS",{"$f":"H155+G155","v":2792.55},null,54.55,2738]
["ARIZAGA GONZALEZ GRACIELA",null,"INTENDENTE","PENSIONADOS",{"$f":"H156-F156","v":1356.15},124.85,null,1481]
["LOPEZ MEJIA FELIPE",null,"AUXILIAR DE ASEO","PENSIONADOS",{"$f":"H157-F157","v":1968.75},73.650000000000006,null,2042.4]
["OCEGUEDA OCEGUEDA REFUGIO",null,"JARDINERO","PENSIONADOS",1353.4499999999998,125.15,null,1478.6]
["CRUZ JIMENEZ SILVINO",null,"INTENDENTE","PENSIONADOS",999.89999999999986,147.69999999999999,null,1147.5999999999999]
["RICO AMADOR JOSE","I","INTENDENTE","PENSIONADOS",999.89999999999986,147.69999999999999,null,1147.5999999999999]
["ORTEGA BRISEÑO ANA ROSA","OEBA890212PK0","SECRETARIA","DESARROLLO SOCIAL",{"$f":"H161+G161","v":2981.56},null,74.959999999999994,2906.6]
["VELASCO VELASCO DAVID ","CAGX6409063F6","DIRECTOR DESARR. SOCIAL","DESARROLLO SOCIAL",4750.05,null,478.75,{"$f":"E162-G162","v":4271.3},{"$f":"J162/30","v":316.66666666666669},9500]
["VEGA NAVA ANGEL IVAN","NASI740826E66","JEFE PROMOCION ECONOMICA","DESARROLLO SOCIAL",4750.05,null,478.75,{"$f":"E163-G163","v":4271.3},{"$f":"J163/30","v":316.66666666666669},9500]
["JIEMENZ GODINEZ MARTHA LILIANA"," GAAG700511RLA","ENCARG PROG SOCIALES","DESARROLLO SOCIAL",2508.75,null,8.61,{"$f":"E164-G164","v":2500.14}]
["FLORES RAMIREZ EMILIO","MEBS731109EF5","DIRECTOR DESARR RURAL","DESARROLLO RURAL",4764,null,481.25,{"$f":"E165-G165","v":4282.75}]
["JIMENEZ MONTES JOSE DANIEL","MAMJ7605214S4","GESTOR PROG AGROPEC","DESARROLLO RURAL",3596.25,null,179.85,{"$f":"E166-G166","v":3416.4}]
["HERNANDEZ LOMELI LUIS ERNESTO",null,"AUXILIAR DES RURAL","DESARROLLO RURAL",{"$f":"H167-F167","v":2268},32.200000000000003,null,2300.1999999999998]
[null,null,null,"TOTAL A PAGAR",{"$f":"SUM(E8:E167)","v":557672.55000000075},{"$f":"SUM(F8:F167)","v":3434.3899999999994},{"$f":"SUM(G8:G167)","v":38807.73000000004},{"$f":"SUM(H8:H167)","v":522299.20999999973}]
[]
["NOMINA DE SEGURIDAD PUBLICA 1° QUINCENA DEL MES DE OCTUBRE 2015"]
["NOMINA DE SEGURIDAD PUBLICA"]
["(2)","(3)","(4)","(4)"]
["HERRERA GUZMAN YESSICA BERENICE",null,"OFICIAL DARE","SEGURIDAD PUBLICA",{"$f":"H173+G173","v":4608.38},null,453.38,4155]
["ESCUTIA HERNANDEZ ISABEL",null,"POLICIA","SEGURIDAD PUBLICA",3265.54,null,126.14,3139.4]
["HERRERA TAMAYO SOCORRO",null,"SECRETARIA","SEGURIDAD PUBLICA",2981.36,null,74.959999999999994,2906.4]
["HERNANDEZ HERNANDEZ JOSE SANTIAGO",null,"POLICIA","SEGURIDAD PUBLICA",3265.54,null,126.14,3139.4]
["CAGAL CAPORAL GUILLERMO",null,"POLICIA","SEGURIDAD PUBLICA",3265.54,null,126.14,3139.4]
["FRANCO MENESES OCTAVIO",null,"CABO","SEGURIDAD PUBLICA",3972.21,null,344.61,3627.6]
["SALVADOR BAUTISTA JULIAN",null,"POLICIA","SEGURIDAD PUBLICA",3265.54,null,126.14,3139.4]
["MAYO LOPEZ GUADALUPE","MALG790904EU5","OFICIAL DARE","SEGURIDAD PUBLICA",4608.38,null,453.38,4155]
["EPINOZA MARCELINO MAXIMINO","EIMM661012BG9","COMANDANTE","SEGURIDAD PUBLICA",4608.58,null,453.38,4155.2]
["BARAJAS GALLEGOS GERARDO",null,"CHOFER","SEGURIDAD PUBLICA",3572.01,null,177.21,3394.8]
["RAMIREZ GONZALEZ MARIA GUADALUPE ",null,"POLICIA","SEGURIDAD PUBLICA",3265.3399999999997,null,126.14,3139.2]
["DELGADO GONZALEZ ISMAEL",null,"POLICIA","SEGURIDAD PUBLICA",3265.54,null,126.14,3139.4]
["NAVARRO ANGEL JUAN JOSE",null,"POLICIA ","SEGURIDAD PUBLICA",3265.54,null,126.14,3139.4]
["VAZQUEZ FLORES J. SALOME",null,"CHOFER","SEGURIDAD PUBLICA",3572.01,null,177.21,3394.8]
["SANTIAGO CRUZ MANUEL",null,"CABO","SEGURIDAD PUBLICA",3972.2999999999997,null,344.7,3627.6]
["FERNANDEZ ESCUTIA DANIEL",null,"POLICIA","SEGURIDAD PUBLICA",3265.54,null,126.14,3139.4]
["DE LA TORRE LEON CESAR JOEL",null,"POLICIA","SEGURIDAD PUBLICA",3265.54,null,126.14,3139.4]
["LARA REYNOSA EMMANUEL SALVADOR",null,"POLICIA","SEGURIDAD PUBLICA",3265.54,null,126.14,3139.4]
["MENDOZA PALOMAR IGNACIO",null,"POLICIA","SEGURIDAD PUBLICA",3265.54,null,126.14,3139.4]
["LARA VAZQUEZ JUANA ESMERALDA ",null,"POLICIA","SEGURIDAD PUBLICA",3265.54,null,126.14,3139.4]
["CONTRERAS FLORES CHRISTIAN JESUS",null,"POLICIA","SEGURIDAD PUBLICA",3265.54,null,126.14,3139.4]
["RODRIGUEZ GONZALEZ LUIS EDUARDO",null,"CHOFER","SEGURIDAD PUBLICA",3572.01,null,177.21,3394.8]
["MONTES JIMENEZ ULISES GERARDO",null,"POLICIA","SEGURIDAD PUBLICA",3265.54,null,126.14,3139.4]
["PADILLA MENDEZ JUAN CARLOS ",null,"POLICIA","SEGURIDAD PUBLICA",3265.54,null,126.14,3139.4]
["JIMENEZ CALDERON CARMEN",null,"POLICIA","SEGURIDAD PUBLICA",3265.6299999999997,null,126.14,3139.49]
["MARTINEZ RODRIGUEZ JOSE EDURADO",null,"CHOFER","SEGURIDAD PUBLICA",3972.21,null,344.61,3627.6]
["GARCIA GONZALEZ EDITH YANELY",null,"POLICIA","SEGURIDAD PUBLICA",870.8,null,33.64,837.16]
["RODRIGUEZ GOMEZ CARLOS GIOVANI",null,"POLICIA","SEGURIDAD PUBLICA",3265.54,null,126.14,3139.4]
["REYES SALDAÑA FRANCISCO",null,"POLICIA","SEGURIDAD PUBLICA",1523.8999999999999,null,58.87,1465.03]
["GILBERT HERNANDEZ MAYRA ELIZABETH",null,"POLICIA","SEGURIDAD PUBLICA",3265.54,null,126.14,3139.4]
["ESQUIVEL ANGUIANO FELIPE",null,"POLICIA","SEGURIDAD PUBLICA",3265.54,null,126.14,3139.4]
["SAHAGUN HERNNADEZ ANA LAURA",null,"POLICIA","SEGURIDAD PUBLICA",3265.54,null,126.14,3139.4]
["RODRIGUZ ROMERO OSCAR",null,"POLICIA","SEGURIDAD PUBLICA",1306.2,null,50.46,1255.74]
["JUAN CARLOS ARCEO RODRIGUEZ",null,"SECRETARIO","SEGURIDAD PUBLICA",{"$f":"H206-F206","v":796.6},1.77,null,798.37]
["LOPEZ GUTIERREZ JESUS",null,"POLICIA","SEGURIDAD PUBLICA",{"$f":"H207+G207","v":870.8},null,33.64,837.16]
["MORENO ROBLEDO FIDEL",null,"COMISARIO DE SEGURIDAD PUBLICA Y PROTECCION CIVIL","SEGURIDAD PUBLICA",7188,null,988,{"$f":"E208-G208","v":6200}]
["LOPEZ DIAZ ALFONSO",null,"SUB-DIRECTOR","SEGURIDAD PUBLICA",5917.5,null,716.7,{"$f":"E209-G209","v":5200.8}]
["RODRIGUEZ GONZALEZ CLARA CATALINA ","ROGC851213275","PARAMEDICO","PROTECCION CIVIL",{"$f":"H210+G210","v":3429.43},null,143.97999999999999,3285.45]
["AVALOS NAVARRETE RAUL","AANR841112957","PARAMEDICO","PROTECCION CIVIL",{"$f":"H211+G211","v":3972.44},null,344.64,3627.8]
["GONZALEZ GARIBAY ERIKA",null,"PARAMEDICO","PROTECCION CIVIL",{"$f":"H212+G212","v":3429.43},null,143.97999999999999,3285.45]
["ALVAREZ FRANCO MOISES",null,"PARAMEDICO","PROTECCION CIVIL",{"$f":"H213+G213","v":3429.58},null,143.97999999999999,3285.6]
["CUEVAS GODINEZ EDUARDO DE JESUS",null,"PARAMEDICO","PROTECCION CIVIL",{"$f":"H214+G214","v":3429.58},null,143.97999999999999,3285.6]
["ROSAS FLORES  MARCOS",null,"POLICIA","PENSIONADO DE SEGURIDAD PÚBLICA",{"$f":"H215-F215","v":2418.75},1.25,null,2420]
["OCHOA JIMENEZ MANUEL",null,"POLICIA","PENSIONADO DE SEGURIDAD PÚBLICA",{"$f":"H216-F216","v":2418.75},1.25,null,2420]
[null,null,null,"TOTAL A PAGAR",{"$f":"SUM(E173:E216)","v":145751.89999999994},{"$f":"SUM(F173:F216)","v":4.2699999999999996},{"$f":"SUM(G173:G216)","v":8325.32},{"$f":"SUM(H173:H216)","v":137430.84999999998}]